[Event "4NCL 2019-20"]
[Site "Daventry"]
[Date "2020.02.29"]
[Round "1"]
[White "Wells, Peter K"]
[Black "Ashton, Adam G"]
[Result "1/2-1/2"]
[ECO "E05"]
[WhiteElo "2390"]
[BlackElo "2379"]
[Annotator "ChessBase"]
[PlyCount "41"]
[EventDate "2020.01.11"]
[EventCountry "ENG"]
[SourceTitle "playchess.com"]
[Source "ChessBase"]
[SourceQuality "1"]
[TimeControl "40/6000:3000+30"]

1. Nf3 {[%emt 0:05:57]} d5 {[%emt 0:04:36]} 2. c4 {[%emt 0:00:16]} e6 {[%emt 0:00:00]} 3. g3 {[%emt 0:00:49]} Nf6 {[%emt 0:01:31]} 4. Bg2 {[%emt 0:02:00]} Be7 {[%emt 0:05:09]} 5. O-O {[%emt 0:00:16]} O-O {[%emt 0:00:00]} 6. d4 {[%emt 0:00:00]} dxc4 {[%emt 0:00:00]} 7. Qc2 {[%emt 0:01:20]} a6 {[%emt 0:04:23]} 8. Qxc4 {[%emt 0:01:51]} b5 {[%emt 0:00:00]} 9. Qc2 {[%emt 0:00:00]} Bb7 {[%emt 0:00:00]} 10. Bg5 {[%emt 0:04:39]} Nbd7 {[%emt 0:05:54]} 11. Bxf6 {[%emt 0:01:24]} Nxf6 {[%emt 0:04:04]} 12. Nbd2 {[%emt 0:01:04]} Rc8 {[%emt 0:07:21]} 13. Nb3 {[%emt 0:00:27]} Be4 {[%emt 0:03:46]} 14. Qc3 {[%emt 0:08:17]} Qd5 {[%emt 0:08:13]} 15. Rfc1 {[%emt 0:23:04]} Rfd8 {[%emt 0:09:09]} 16. Qa5 {[%emt 0:06:39]} Qb7 {[%emt 0:12:16]} 17. Nc5 {[%emt 0:05:41]} Bxc5 {[%emt 0:00:00]} 18. Rxc5 {[%emt 0:00:00]} Qb6 {[%emt 0:03:22]} 19. Qxb6 {[%emt 0:04:24]} cxb6 {[%emt 0:00:00]} 20. Rcc1 {[%emt 0:00:00]} Nd5 {[%emt 0:04:34]} 21. a3 {[%emt 0:14:00]} 1/2-1/2

[Event "4NCL 2019-20"]
[Site "Daventry"]
[Date "2020.02.29"]
[Round "1"]
[White "Chow, Samuel"]
[Black "Clarke, Stuart W"]
[Result "1-0"]
[ECO "E17"]
[WhiteElo "2317"]
[BlackElo "2195"]
[Annotator "ChessBase"]
[PlyCount "71"]
[EventDate "2020.01.11"]
[EventCountry "ENG"]
[SourceTitle "playchess.com"]
[Source "ChessBase"]
[SourceQuality "1"]
[TimeControl "40/6000:3000+30"]

1. Nf3 {[%emt 0:00:00]} Nf6 {[%emt 0:00:00]} 2. g3 {[%emt 0:00:00]} b6 {[%emt 0:00:00]} 3. Bg2 {[%emt 0:00:19]} Bb7 {[%emt 0:00:00]} 4. O-O {[%emt 0:00:10]} e6 {[%emt 0:00:00]} 5. c4 {[%emt 0:02:15]} Be7 {[%emt 0:03:59]} 6. d4 {[%emt 0:06:01]} O-O {[%emt 0:04:57]} 7. d5 {[%emt 0:06:02]} exd5 {[%emt 0:00:51]} 8. Nd4 {[%emt 0:02:07]} Nc6 {[%emt 0:07:12]} 9. cxd5 {[%emt 0:02:48]} Nxd4 {[%emt 0:00:57]} 10. Qxd4 {[%emt 0:00:00]} c5 {[%emt 0:00:00]} 11. Qd3 {[%emt 0:00:57]} d6 {[%emt 0:00:27]} 12. Nc3 {[%emt 0:02:10]} Re8 {[%emt 0:17:57]} 13. Bf4 {[%emt 0:07:38]} Nh5 {[%emt 0:05:30]} 14. Bd2 {[%emt 0:00:25]} g6 {[%emt 0:00:17]} 15. Rad1 {[%emt 0:02:01]} Bf6 {[%emt 0:10:31]} 16. g4 {[%emt 0:10:10]} Ng7 {[%emt 0:00:32]} 17. Ne4 {[%emt 0:01:02]} a5 {[%emt 0:10:04]} 18. Bc3 {[%emt 0:03:08]} Be5 {[%emt 0:07:46]} 19. g5 {[%emt 0:24:41]} Ba6 {[%emt 0:03:03]} 20. Qd2 {[%emt 0:01:40]} Nh5 {[%emt 0:05:14]} 21. Bxe5 {[%emt 0:00:44]} Rxe5 {[%emt 0:00:21]} 22. f4 {[%emt 0:00:00]} Re8 {[%emt 0:00:04]} 23. Rf2 {[%emt 0:03:16]} f5 {[%emt 0:00:21]} 24. gxf6 {[%emt 0:03:27]} Nxf6 {[%emt 0:00:00]} 25. Nxf6+ {[%emt 0:00:05]} Qxf6 {[%emt 0:00:00]} 26. e4 {[%emt 0:00:00]} Ra7 {[%emt 0:05:13]} 27. Re1 {[%emt 0:00:56]} Rae7 {[%emt 0:00:49]} 28. e5 {[%emt 0:01:44]} Qf5 {[%emt 0:01:27]} 29. Be4 {[%emt 0:00:31]} Qg4+ {[%emt 0:00:00]} 30. Rg2 {[%emt 0:00:04]} Qh4 {[%emt 0:00:00]} 31. e6 {[%emt 0:00:19]} Rg7 {[%emt 0:03:32]} 32. Kh1 {[%emt 0:04:15]} Rf8 {[%emt 0:03:03]} 33. f5 {[%emt 0:04:41]} Rf6 {[%emt 0:02:31]} 34. Qc3 {[%emt 0:02:36]} Kf8 {[%emt 0:00:00]} 35. Rg4 {[%emt 0:03:12]} Kg8 36. Rg2 {[%emt 0:00:04]} 1-0

[Event "4NCL 2019-20"]
[Site "Daventry"]
[Date "2020.02.29"]
[Round "1"]
[White "Webb, Laurence E"]
[Black "Grieve, Harry"]
[Result "1/2-1/2"]
[ECO "D31"]
[WhiteElo "2307"]
[BlackElo "2299"]
[Annotator "ChessBase"]
[PlyCount "61"]
[EventDate "2020.01.11"]
[EventCountry "ENG"]
[SourceTitle "playchess.com"]
[Source "ChessBase"]
[SourceQuality "1"]
[TimeControl "40/6000:3000+30"]

1. d4 {[%emt 0:00:00]} d5 {[%emt 0:00:00]} 2. c4 {[%emt 0:00:00]} e6 {[%emt 0:00:00]} 3. Nc3 {[%emt 0:00:00]} c6 {[%emt 0:00:00]} 4. cxd5 {[%emt 0:00:00]} exd5 {[%emt 0:00:00]} 5. Nf3 {[%emt 0:00:00]} Bf5 {[%emt 0:01:43]} 6. Bg5 {[%emt 0:00:00]} Be7 {[%emt 0:00:32]} 7. Bxe7 {[%emt 0:00:00]} Nxe7 {[%emt 0:01:44]} 8. e3 {[%emt 0:00:00]} O-O {[%emt 0:05:12]} 9. Be2 {[%emt 0:00:00]} Nd7 {[%emt 0:04:14]} 10. O-O {[%emt 0:00:00]} Nc8 {[%emt 0:00:00]} 11. Rc1 {[%emt 0:01:34]} Nd6 {[%emt 0:01:45]} 12. b4 {[%emt 0:04:07]} b5 {[%emt 0:08:41]} 13. a4 {[%emt 0:08:30]} a6 {[%emt 0:01:50]} 14. Ra1 {[%emt 0:12:55]} Qe7 {[%emt 0:04:18]} 15. Qc1 {[%emt 0:04:48]} Bg4 {[%emt 0:07:14]} 16. h3 {[%emt 0:03:15]} Bh5 {[%emt 0:04:10]} 17. Re1 {[%emt 0:08:38]} Nc4 {[%emt 0:05:34]} 18. e4 {[%emt 0:04:24]} dxe4 {[%emt 0:13:15]} 19. Bxc4 {[%emt 0:04:20]} Qxb4 {[%emt 0:01:06]} 20. Nd2 {[%emt 0:01:21]} bxc4 {[%emt 0:00:52]} 21. Ncxe4 {[%emt 0:00:00]} f5 {[%emt 0:04:33]} 22. Ng5 {[%emt 0:14:15]} c3 {[%emt 0:03:38]} 23. Nf1 {[%emt 0:04:09]} Rfe8 {[%emt 0:03:48]} 24. Ng3 {[%emt 0:03:07]} Bg6 {[%emt 0:01:56]} 25. Ne2 {[%emt 0:02:23]} h6 {[%emt 0:05:16]} 26. Nf3 {[%emt 0:01:11]} Bh5 {[%emt 0:00:00]} 27. Qxc3 {[%emt 0:00:28]} Qxc3 {[%emt 0:00:00]} 28. Nxc3 {[%emt 0:00:00]} Bxf3 {[%emt 0:00:00]} 29. gxf3 {[%emt 0:00:00]} Nf6 {[%emt 0:02:43]} 30. Rxe8+ {[%emt 0:02:54]} Rxe8 {[%emt 0:01:54]} 31. Rb1 {[%emt 0:00:00]} 1/2-1/2

[Event "4NCL 2019-20"]
[Site "Daventry"]
[Date "2020.02.29"]
[Round "1"]
[White "Delaney, Killian"]
[Black "O'Toole, George E"]
[Result "1/2-1/2"]
[ECO "E14"]
[WhiteElo "2287"]
[BlackElo "2252"]
[Annotator "ChessBase"]
[PlyCount "56"]
[EventDate "2020.01.11"]
[EventCountry "ENG"]
[SourceTitle "playchess.com"]
[Source "ChessBase"]
[SourceQuality "1"]
[TimeControl "40/6000:3000+30"]

1. c4 {[%emt 0:00:00]} Nf6 {[%emt 0:28:17]} 2. Nc3 {[%emt 0:00:00]} e6 {[%emt 0:00:59]} 3. Nf3 {[%emt 0:00:05]} d5 {[%emt 0:00:00]} 4. e3 {[%emt 0:02:38]} Be7 {[%emt 0:00:16]} 5. b3 {[%emt 0:00:00]} O-O {[%emt 0:00:00]} 6. Bb2 {[%emt 0:00:00]} b6 {[%emt 0:00:00]} 7. cxd5 {[%emt 0:00:33]} exd5 {[%emt 0:00:00]} 8. d4 {[%emt 0:00:00]} Bb7 {[%emt 0:00:17]} 9. Bd3 {[%emt 0:00:00]} Nbd7 {[%emt 0:04:42]} 10. O-O {[%emt 0:00:00]} Ne4 {[%emt 0:05:09]} 11. Qc2 {[%emt 0:08:53]} Ndf6 {[%emt 0:02:35]} 12. Ne5 {[%emt 0:00:11]} c5 {[%emt 0:00:38]} 13. f3 {[%emt 0:08:05]} cxd4 {[%emt 0:18:01]} 14. exd4 {[%emt 0:00:06]} Nxc3 {[%emt 0:00:00]} 15. Qxc3 {[%emt 0:00:24]} Rc8 {[%emt 0:00:00]} 16. Qd2 {[%emt 0:00:00]} Ne8 {[%emt 0:08:06]} 17. Bf5 {[%emt 0:01:29]} Rc7 {[%emt 0:00:10]} 18. Rac1 {[%emt 0:00:00]} Nd6 {[%emt 0:01:29]} 19. Rxc7 {[%emt 0:00:16]} Qxc7 {[%emt 0:00:00]} 20. Rc1 {[%emt 0:00:00]} Qd8 {[%emt 0:00:00]} 21. Bd3 {[%emt 0:23:05]} Bg5 {[%emt 0:02:34]} 22. f4 {[%emt 0:00:00]} Bf6 {[%emt 0:00:00]} 23. Qc2 {[%emt 0:00:00]} Ne4 {[%emt 0:06:42]} 24. Qc7 {[%emt 0:00:00]} Qa8 {[%emt 0:01:32]} 25. Rf1 {[%emt 0:17:25]} Qc8 {[%emt 0:01:09]} 26. Rc1 {[%emt 0:00:00]} Qa8 {[%emt 0:00:00]} 27. Qd7 {[%emt 0:07:29]} Bc8 {[%emt 0:04:33]} 28. Qc7 {[%emt 0:06:46]} Bb7 {[%emt 0:01:01]} 1/2-1/2

[Event "4NCL 2019-20"]
[Site "Daventry"]
[Date "2020.02.29"]
[Round "1"]
[White "Povah, Nigel E"]
[Black "Duncan, Chris R"]
[Result "1/2-1/2"]
[ECO "B13"]
[WhiteElo "2284"]
[BlackElo "2217"]
[Annotator "ChessBase"]
[PlyCount "52"]
[EventDate "2020.01.11"]
[EventCountry "ENG"]
[SourceTitle "playchess.com"]
[Source "ChessBase"]
[SourceQuality "1"]
[TimeControl "40/6000:3000+30"]

1. d4 {[%emt 0:00:00]} d5 {[%emt 0:00:01]} 2. Bf4 {[%emt 0:00:00]} c5 {[%emt 0:00:26]} 3. e3 {[%emt 0:00:00]} cxd4 {[%emt 0:00:00]} 4. exd4 {[%emt 0:00:00]} Nc6 {[%emt 0:00:00]} 5. c3 {[%emt 0:00:00]} Bf5 {[%emt 0:00:00]} 6. Nf3 {[%emt 0:00:56]} e6 {[%emt 0:00:00]} 7. Bd3 {[%emt 0:21:03]} Bxd3 {[%emt 0:06:05]} 8. Qxd3 {[%emt 0:00:00]} Bd6 {[%emt 0:00:00]} 9. Bg3 {[%emt 0:00:37]} Nge7 {[%emt 0:03:54]} 10. Nbd2 {[%emt 0:01:27]} Nf5 {[%emt 0:00:52]} 11. Bxd6 {[%emt 0:00:42]} Qxd6 {[%emt 0:00:02]} 12. O-O {[%emt 0:03:30]} O-O {[%emt 0:00:04]} 13. Rfe1 {[%emt 0:00:26]} Rfd8 {[%emt 0:04:49]} 14. a4 {[%emt 0:05:38]} Rab8 {[%emt 0:17:14]} 15. g3 {[%emt 0:09:34]} Qc7 {[%emt 0:04:25]} 16. h4 {[%emt 0:06:59]} Re8 {[%emt 0:04:23]} 17. Kg2 {[%emt 0:02:58]} Rbd8 {[%emt 0:01:55]} 18. Rac1 {[%emt 0:15:57]} Qd6 {[%emt 0:05:30]} 19. Ra1 {[%emt 0:04:42]} f6 {[%emt 0:02:52]} 20. Nb3 {[%emt 0:01:56]} Re7 {[%emt 0:03:42]} 21. Rad1 {[%emt 0:06:23]} Nh6 {[%emt 0:03:51]} 22. Re2 {[%emt 0:01:40]} Nf7 {[%emt 0:07:11]} 23. Red2 {[%emt 0:00:38]} Nh6 {[%emt 0:05:57]} 24. Re1 {[%emt 0:02:34]} Nf7 {[%emt 0:04:14]} 25. Red1 {[%emt 0:00:06]} Nh6 {[%emt 0:03:07]} 26. Re1 {[%emt 0:00:00]} Nf7 {[%emt 0:01:53]} 1/2-1/2

[Event "4NCL 2019-20"]
[Site "Daventry"]
[Date "2020.02.29"]
[Round "1"]
[White "Navarro Cia, Miguel"]
[Black "Kanyamarala, Trisha"]
[Result "1/2-1/2"]
[ECO "B67"]
[WhiteElo "2256"]
[BlackElo "2299"]
[Annotator "ChessBase"]
[PlyCount "51"]
[EventDate "2020.01.11"]
[EventCountry "ENG"]
[SourceTitle "playchess.com"]
[Source "ChessBase"]
[SourceQuality "1"]
[TimeControl "40/6000:3000+30"]

1. e4 {[%emt 0:00:00]} c5 {[%emt 0:00:00]} 2. Nf3 {[%emt 0:00:00]} d6 {[%emt 0:00:00]} 3. d4 {[%emt 0:00:00]} cxd4 {[%emt 0:00:00]} 4. Nxd4 {[%emt 0:00:00]} Nf6 {[%emt 0:00:00]} 5. Nc3 {[%emt 0:00:00]} Nc6 {[%emt 0:00:00]} 6. Bg5 {[%emt 0:00:08]} e6 {[%emt 0:00:00]} 7. Qd2 {[%emt 0:00:00]} a6 {[%emt 0:00:00]} 8. O-O-O {[%emt 0:00:00]} Bd7 {[%emt 0:00:00]} 9. f3 {[%emt 0:00:00]} Be7 {[%emt 0:00:00]} 10. h4 {[%emt 0:01:15]} h6 {[%emt 0:00:00]} 11. Be3 {[%emt 0:00:00]} h5 {[%emt 0:00:29]} 12. Bg5 {[%emt 0:00:00]} Qc7 {[%emt 0:02:45]} 13. Kb1 {[%emt 0:05:09]} Nxd4 {[%emt 0:09:44]} 14. Qxd4 {[%emt 0:00:00]} b5 {[%emt 0:03:58]} 15. Bd3 {[%emt 0:13:51]} b4 {[%emt 0:07:03]} 16. Ne2 {[%emt 0:05:48]} a5 {[%emt 0:04:09]} 17. Rhe1 {[%emt 0:11:45]} Rb8 {[%emt 0:03:48]} 18. Qf2 {[%emt 0:18:15]} a4 {[%emt 0:04:20]} 19. Qg3 {[%emt 0:13:15]} Qc5 {[%emt 0:17:43]} 20. Bd2 {[%emt 0:06:18]} g6 {[%emt 0:06:00]} 21. c4 {[%emt 0:01:44]} bxc3 {[%emt 0:11:10]} 22. Bxc3 {[%emt 0:00:00]} e5 {[%emt 0:00:00]} 23. Rc1 {[%emt 0:04:36]} Qb6 {[%emt 0:15:47]} 24. f4 {[%emt 0:05:06]} Ng4 {[%emt 0:00:00]} 25. Bc4 {[%emt 0:00:00]} O-O {[%emt 0:03:36]} 26. Bd5 {[%emt 0:00:00]} 1/2-1/2

[Event "4NCL 2019-20"]
[Site "Daventry"]
[Date "2020.02.29"]
[Round "1"]
[White "Dong, Bao Nghia"]
[Black "Ashworth, Michael"]
[Result "1/2-1/2"]
[ECO "A48"]
[WhiteElo "2209"]
[BlackElo "2007"]
[Annotator "ChessBase"]
[PlyCount "87"]
[EventDate "2020.01.11"]
[EventCountry "ENG"]
[SourceTitle "playchess.com"]
[Source "ChessBase"]
[SourceQuality "1"]
[TimeControl "40/6000:3000+30"]

1. d4 {[%emt 0:00:30]} Nf6 {[%emt 0:00:00]} 2. Bf4 {[%emt 0:00:00]} g6 {[%emt 0:00:00]} 3. e3 {[%emt 0:00:00]} Bg7 {[%emt 0:00:00]} 4. h3 {[%emt 0:00:00]} O-O {[%emt 0:00:00]} 5. Nf3 {[%emt 0:00:00]} d6 {[%emt 0:00:00]} 6. Bc4 {[%emt 0:00:00]} Nbd7 {[%emt 0:00:00]} 7. O-O {[%emt 0:00:00]} c5 {[%emt 0:00:00]} 8. c3 {[%emt 0:00:00]} b6 {[%emt 0:01:12]} 9. a4 {[%emt 0:00:00]} a6 {[%emt 0:00:00]} 10. Nbd2 {[%emt 0:00:00]} Bb7 {[%emt 0:00:00]} 11. Bh2 {[%emt 0:00:00]} Ra7 {[%emt 0:07:52]} 12. b4 {[%emt 0:00:00]} Qa8 {[%emt 0:03:24]} 13. Qb3 {[%emt 0:00:00]} Bd5 {[%emt 0:09:10]} 14. Bxd5 {[%emt 0:00:23]} Qxd5 {[%emt 0:00:00]} 15. c4 {[%emt 0:00:00]} Qa8 {[%emt 0:01:06]} 16. Rfb1 {[%emt 0:00:53]} Ne4 {[%emt 0:07:10]} 17. Nxe4 {[%emt 0:05:26]} Qxe4 {[%emt 0:00:00]} 18. a5 {[%emt 0:00:00]} Rb8 {[%emt 0:11:48]} 19. Nd2 {[%emt 0:04:22]} Qa8 {[%emt 0:00:45]} 20. Qd3 {[%emt 0:04:48]} cxd4 {[%emt 0:17:23]} 21. exd4 {[%emt 0:00:00]} b5 {[%emt 0:00:00]} 22. c5 {[%emt 0:00:00]} Qd5 {[%emt 0:00:26]} 23. Ra3 {[%emt 0:04:58]} Qxd4 {[%emt 0:04:50]} 24. Qxd4 {[%emt 0:00:26]} Bxd4 {[%emt 0:00:00]} 25. cxd6 {[%emt 0:00:00]} exd6 {[%emt 0:00:00]} 26. Rd3 {[%emt 0:00:00]} Be5 {[%emt 0:01:03]} 27. f4 {[%emt 0:01:12]} Bg7 {[%emt 0:01:23]} 28. Rxd6 {[%emt 0:00:00]} Rc8 {[%emt 0:01:01]} 29. f5 {[%emt 0:00:54]} Bf8 {[%emt 0:06:33]} 30. Rd5 {[%emt 0:03:05]} Nf6 {[%emt 0:02:26]} 31. Rd4 {[%emt 0:00:00]} Rd7 {[%emt 0:00:30]} 32. Rxd7 {[%emt 0:02:02]} Nxd7 {[%emt 0:00:00]} 33. fxg6 {[%emt 0:00:00]} fxg6 {[%emt 0:00:00]} 34. Nf3 {[%emt 0:00:00]} Nf6 {[%emt 0:07:47]} 35. Bg3 {[%emt 0:01:42]} Nd5 {[%emt 0:00:58]} 36. Be1 {[%emt 0:00:00]} Rc4 {[%emt 0:00:47]} 37. Ne5 {[%emt 0:00:00]} Rd4 {[%emt 0:05:25]} 38. Nc6 {[%emt 0:00:00]} Re4 {[%emt 0:00:16]} 39. Rd1 {[%emt 0:03:14]} Nxb4 {[%emt 0:01:12]} 40. Bxb4 {[%emt 0:05:22]} Bxb4 {[%emt 0:00:00]} 41. Nxb4 {[%emt 0:50:03]} Rxb4 {[%emt 0:49:46]} 42. Rd6 {[%emt 0:00:02]} Ra4 {[%emt 0:01:15]} 43. Rxa6 {[%emt 0:00:07]} b4 {[%emt 0:00:05]} 44. Rb6 {[%emt 0:03:39]} 1/2-1/2

[Event "4NCL 2019-20"]
[Site "Daventry"]
[Date "2020.02.29"]
[Round "1"]
[White "Stepanyan, Henrik"]
[Black "Foisor, Mihaela-Veronica"]
[Result "1/2-1/2"]
[ECO "E09"]
[WhiteElo "2198"]
[BlackElo "2211"]
[Annotator "ChessBase"]
[PlyCount "46"]
[EventDate "2020.01.11"]
[EventCountry "ENG"]
[SourceTitle "playchess.com"]
[Source "ChessBase"]
[SourceQuality "1"]
[TimeControl "40/6000:3000+30"]

1. d4 {[%emt 0:00:00]} Nf6 {[%emt 0:00:00]} 2. c4 {[%emt 0:00:00]} e6 {[%emt 0:00:00]} 3. Nf3 {[%emt 0:00:00]} d5 {[%emt 0:00:00]} 4. g3 {[%emt 0:00:00]} c6 {[%emt 0:00:00]} 5. Qc2 {[%emt 0:00:40]} Be7 {[%emt 0:00:56]} 6. Bg2 {[%emt 0:00:00]} b6 {[%emt 0:00:00]} 7. O-O {[%emt 0:00:00]} Ba6 {[%emt 0:00:09]} 8. Nbd2 {[%emt 0:10:39]} Nbd7 {[%emt 0:00:30]} 9. Re1 {[%emt 0:06:20]} O-O {[%emt 0:00:59]} 10. e4 {[%emt 0:06:26]} dxe4 {[%emt 0:00:03]} 11. Nxe4 {[%emt 0:00:00]} Nxe4 {[%emt 0:00:00]} 12. Rxe4 {[%emt 0:00:00]} c5 {[%emt 0:03:19]} 13. Re1 {[%emt 0:08:48]} Rc8 {[%emt 0:02:27]} 14. d5 {[%emt 0:03:19]} exd5 {[%emt 0:00:00]} 15. cxd5 {[%emt 0:00:00]} Nf6 {[%emt 0:00:00]} 16. Bf4 {[%emt 0:06:34]} Bd6 {[%emt 0:00:52]} 17. Bg5 {[%emt 0:01:46]} h6 {[%emt 0:00:17]} 18. Bxf6 {[%emt 0:02:16]} Qxf6 {[%emt 0:00:00]} 19. Nd2 {[%emt 0:00:24]} Bb7 {[%emt 0:00:02]} 20. Ne4 {[%emt 0:01:31]} Qg6 {[%emt 0:00:01]} 21. Qa4 {[%emt 0:04:00]} Bxd5 {[%emt 0:06:35]} 22. Nxd6 {[%emt 0:18:16]} Qxd6 {[%emt 0:00:00]} 23. Bxd5 {[%emt 0:00:23]} Qxd5 {[%emt 0:00:00]} 1/2-1/2

[Event "4NCL 2019-20"]
[Site "Daventry"]
[Date "2020.02.29"]
[Round "1"]
[White "Bremner, Adam"]
[Black "Willow, Jonah B"]
[Result "1/2-1/2"]
[ECO "B36"]
[WhiteElo "2148"]
[BlackElo "2377"]
[Annotator "ChessBase"]
[PlyCount "66"]
[EventDate "2020.01.11"]
[EventCountry "ENG"]
[SourceTitle "playchess.com"]
[Source "ChessBase"]
[SourceQuality "1"]
[TimeControl "40/6000:3000+30"]

1. e4 {[%emt 0:03:59]} c5 {[%emt 0:00:00]} 2. Nf3 {[%emt 0:00:00]} Nc6 {[%emt 0:00:00]} 3. d4 {[%emt 0:00:00]} cxd4 {[%emt 0:00:00]} 4. Nxd4 {[%emt 0:00:00]} g6 {[%emt 0:00:00]} 5. c4 {[%emt 0:00:00]} Nf6 {[%emt 0:02:18]} 6. Nc3 {[%emt 0:00:49]} d6 {[%emt 0:00:00]} 7. Be2 {[%emt 0:00:01]} Nxd4 {[%emt 0:00:00]} 8. Qxd4 {[%emt 0:00:00]} Bg7 {[%emt 0:00:00]} 9. Bg5 {[%emt 0:00:00]} O-O {[%emt 0:00:00]} 10. Qd2 {[%emt 0:00:00]} a5 {[%emt 0:02:58]} 11. O-O {[%emt 0:00:27]} a4 {[%emt 0:00:00]} 12. Rad1 {[%emt 0:00:24]} Qa5 {[%emt 0:41:07]} 13. Bxf6 {[%emt 0:00:00]} Bxf6 {[%emt 0:00:00]} 14. Nd5 {[%emt 0:00:00]} Qxd2 {[%emt 0:00:00]} 15. Nxf6+ {[%emt 0:00:00]} Kg7 {[%emt 0:00:00]} 16. Nh5+ {[%emt 0:00:00]} gxh5 {[%emt 0:00:00]} 17. Rxd2 {[%emt 0:00:00]} Be6 {[%emt 0:00:00]} 18. f4 {[%emt 0:00:00]} f5 {[%emt 0:01:27]} 19. exf5 {[%emt 0:00:00]} Rxf5 {[%emt 0:00:24]} 20. Bd3 {[%emt 0:00:00]} Rc5 {[%emt 0:06:53]} 21. Re1 {[%emt 0:06:01]} Kf6 {[%emt 0:05:54]} 22. Rde2 {[%emt 0:06:01]} Bxc4 {[%emt 0:00:00]} 23. Bxc4 {[%emt 0:00:00]} Rxc4 {[%emt 0:00:00]} 24. Rxe7 {[%emt 0:00:00]} Rb4 {[%emt 0:13:47]} 25. h3 {[%emt 0:12:40]} h4 {[%emt 0:04:01]} 26. R7e6+ {[%emt 0:34:13]} Kf5 {[%emt 0:00:05]} 27. Rxd6 {[%emt 0:00:02]} Rxb2 {[%emt 0:02:14]} 28. Rd5+ {[%emt 0:01:15]} Kxf4 {[%emt 0:02:04]} 29. Rd4+ {[%emt 0:00:00]} Kf5 {[%emt 0:00:00]} 30. Rd5+ {[%emt 0:07:49]} Kf6 {[%emt 0:00:00]} 31. Rd6+ {[%emt 0:00:00]} Kf5 {[%emt 0:00:05]} 32. Rd5+ {[%emt 0:00:00]} Kf6 {[%emt 0:00:00]} 33. Rd6+ {[%emt 0:00:00]} Kf5 {[%emt 0:00:00]} 1/2-1/2

[Event "4NCL 2019-20"]
[Site "Daventry"]
[Date "2020.02.29"]
[Round "1"]
[White "Ledger, Dave J"]
[Black "Ciuksyte, Dagne"]
[Result "0-1"]
[ECO "B41"]
[WhiteElo "2135"]
[BlackElo "2295"]
[Annotator "ChessBase"]
[PlyCount "70"]
[EventDate "2020.01.11"]
[EventCountry "ENG"]
[SourceTitle "playchess.com"]
[Source "ChessBase"]
[SourceQuality "1"]
[TimeControl "40/6000:3000+30"]

1. e4 {[%emt 0:00:00]} c5 {[%emt 0:00:00]} 2. Nf3 {[%emt 0:00:00]} e6 {[%emt 0:00:00]} 3. d4 {[%emt 0:00:00]} cxd4 {[%emt 0:00:00]} 4. Nxd4 {[%emt 0:00:00]} a6 {[%emt 0:00:00]} 5. c4 {[%emt 0:00:00]} Nf6 {[%emt 0:00:00]} 6. Nc3 {[%emt 0:00:00]} Qc7 {[%emt 0:00:00]} 7. Be2 {[%emt 0:01:32]} b6 {[%emt 0:00:00]} 8. f4 {[%emt 0:02:20]} Bb4 {[%emt 0:00:18]} 9. Qd3 {[%emt 0:05:17]} Bb7 {[%emt 0:00:00]} 10. e5 {[%emt 0:01:24]} Ne4 {[%emt 0:00:51]} 11. O-O {[%emt 0:01:43]} Bxc3 {[%emt 0:03:51]} 12. bxc3 {[%emt 0:00:05]} d6 {[%emt 0:00:39]} 13. exd6 {[%emt 0:04:17]} Qxd6 {[%emt 0:01:23]} 14. Bf3 {[%emt 0:02:08]} f5 {[%emt 0:07:35]} 15. a4 {[%emt 0:08:37]} Nd7 {[%emt 0:05:32]} 16. Ba3 {[%emt 0:01:32]} Ndc5 {[%emt 0:06:12]} 17. Qe3 {[%emt 0:00:14]} O-O {[%emt 0:05:35]} 18. a5 {[%emt 0:02:11]} e5 {[%emt 0:13:25]} 19. fxe5 {[%emt 0:14:54]} Qxe5 {[%emt 0:00:00]} 20. Rab1 {[%emt 0:05:44]} Rad8 {[%emt 0:18:34]} 21. Rxb6 {[%emt 0:04:43]} Rf7 {[%emt 0:02:39]} 22. Rfb1 {[%emt 0:17:37]} f4 {[%emt 0:01:27]} 23. Qe2 {[%emt 0:01:58]} Rxd4 {[%emt 0:00:44]} 24. cxd4 {[%emt 0:01:03]} Qxd4+ {[%emt 0:00:00]} 25. Kf1 {[%emt 0:01:41]} Nd2+ {[%emt 0:10:26]} 26. Qxd2 {[%emt 0:00:15]} Qxd2 {[%emt 0:00:00]} 27. Bxc5 {[%emt 0:00:00]} Rc7 {[%emt 0:08:46]} 28. Rxb7 {[%emt 0:05:41]} Rxc5 {[%emt 0:00:00]} 29. Rd1 {[%emt 0:01:26]} Qxa5 {[%emt 0:00:00]} 30. Rdd7 {[%emt 0:05:13]} Qa1+ {[%emt 0:00:00]} 31. Kf2 {[%emt 0:00:00]} Rc8 {[%emt 0:01:11]} 32. Bd5+ {[%emt 0:00:00]} Kh8 {[%emt 0:00:00]} 33. c5 {[%emt 0:01:20]} Qd4+ {[%emt 0:00:00]} 34. Kf1 {[%emt 0:00:58]} Qxc5 {[%emt 0:00:00]} 35. Rbc7 {[%emt 0:00:53]} Qxc7 {[%emt 0:00:00]} 0-1

[Event "4NCL 2019-20"]
[Site "Daventry"]
[Date "2020.02.29"]
[Round "1"]
[White "Walton, Alan J"]
[Black "Townsend, M Paul"]
[Result "0-1"]
[ECO "D36"]
[WhiteElo "2123"]
[BlackElo "2217"]
[Annotator "ChessBase"]
[PlyCount "68"]
[EventDate "2020.01.11"]
[EventCountry "ENG"]
[SourceTitle "playchess.com"]
[Source "ChessBase"]
[SourceQuality "1"]
[TimeControl "40/6000:3000+30"]

1. d4 {[%emt 0:00:00]} d5 {[%emt 0:00:00]} 2. c4 {[%emt 0:00:00]} e6 {[%emt 0:03:25]} 3. Nc3 {[%emt 0:00:00]} Nf6 {[%emt 0:00:00]} 4. cxd5 {[%emt 0:00:29]} exd5 {[%emt 0:00:00]} 5. Bg5 {[%emt 0:00:07]} c6 {[%emt 0:00:00]} 6. Qc2 {[%emt 0:01:44]} Be7 {[%emt 0:00:00]} 7. e3 {[%emt 0:00:16]} Nbd7 {[%emt 0:00:00]} 8. Bd3 {[%emt 0:00:11]} h6 {[%emt 0:00:00]} 9. Bh4 {[%emt 0:00:19]} Nh5 {[%emt 0:00:00]} 10. Bxe7 {[%emt 0:01:54]} Qxe7 {[%emt 0:00:00]} 11. O-O-O {[%emt 0:00:00]} Nb6 {[%emt 0:00:00]} 12. h3 {[%emt 0:05:32]} Nf6 {[%emt 0:00:43]} 13. Nf3 {[%emt 0:03:49]} Be6 {[%emt 0:00:03]} 14. Na4 {[%emt 0:00:18]} Nxa4 {[%emt 0:06:45]} 15. Qxa4 {[%emt 0:00:00]} O-O {[%emt 0:04:20]} 16. Kb1 {[%emt 0:01:57]} Ne4 {[%emt 0:07:50]} 17. Qc2 {[%emt 0:16:24]} Rac8 {[%emt 0:11:17]} 18. Ne5 {[%emt 0:05:25]} Rfd8 {[%emt 0:18:52]} 19. f3 {[%emt 0:01:58]} Nf6 {[%emt 0:00:11]} 20. g4 {[%emt 0:05:35]} c5 {[%emt 0:05:38]} 21. Qd2 {[%emt 0:08:40]} c4 {[%emt 0:03:03]} 22. Bc2 {[%emt 0:01:45]} Rd6 {[%emt 0:05:13]} 23. h4 {[%emt 0:03:53]} Nd7 {[%emt 0:11:38]} 24. Qb4 {[%emt 0:05:13]} c3 {[%emt 0:02:36]} 25. b3 {[%emt 0:00:00]} a5 {[%emt 0:01:21]} 26. Qa3 {[%emt 0:00:00]} a4 {[%emt 0:00:03]} 27. f4 {[%emt 0:02:25]} axb3 {[%emt 0:03:36]} 28. axb3 {[%emt 0:00:00]} Qf8 {[%emt 0:05:08]} 29. f5 {[%emt 0:01:33]} Ra8 {[%emt 0:00:00]} 30. Nxd7 {[%emt 0:03:04]} Bxd7 {[%emt 0:01:11]} 31. Qc5 {[%emt 0:00:00]} Rc8 {[%emt 0:00:21]} 32. Qb4 {[%emt 0:00:00]} Rcc6 {[%emt 0:02:42]} 33. Bd3 {[%emt 0:00:30]} c2+ {[%emt 0:00:00]} 34. Bxc2 {[%emt 0:00:00]} Rxc2 {[%emt 0:00:00]} 0-1